lending/lending_fUSD_20260110
["ID","MTS","AMOUNT","RATE_DAILY","PERIOD"]
[401165847,1768007441717,-150.0,0.00016425,2]
[401165848,1768007441727,-150.0,0.00016427,2]
[401165849,1768007441736,-500.0,0.00016427,2]
[401165850,1768007441746,-150.0,0.00016427,2]
[401165851,1768007441755,-150.0,0.00016427,2]
[401165852,1768007441765,-500.0,0.00016427,2]
[401165853,1768007441774,-150.0,0.00016427,2]
[401165854,1768007441784,-150.0,0.00016428,2]
[401165855,1768007441793,-150.0,0.00016428,2]
[401165856,1768007441803,-500.0,0.00016438,2]
[401165857,1768007441812,-500.0,0.00016438,2]
[401165858,1768007441821,-334.56953718,0.00016438,2]
[401165859,1768007441830,-600.0,0.00016438,2]
[401165860,1768007441839,-500.0,0.00016438,2]
[401165861,1768007441848,-965.64,0.00016441,2]
[401165862,1768007441857,-150.0,0.00016442,2]
[401165863,1768007441866,-150.0,0.00016444,2]
[401165864,1768007441875,-150.0,0.00016444,2]
[401165865,1768007441885,-150.0,0.00016445,2]
[401165866,1768007441894,-150.0,0.00016449,2]
[401165867,1768007441904,-150.0,0.00016451,2]
[401165868,1768007441913,-150.0,0.00016454,2]
[401165869,1768007441922,-150.0,0.00016457,2]
[401165870,1768007441932,-150.0,0.00016462,2]
[401165871,1768007441942,-150.0,0.00016466,2]
[401165872,1768007441951,-150.0,0.00016467,2]
[401165873,1768007441960,-150.0,0.00016469,2]
[401165874,1768007441970,-150.0,0.0001647,2]
[401165875,1768007441979,-150.0,0.00016473,2]
[401165876,1768007441989,-150.0,0.00016477,2]
[401165877,1768007441998,-150.0,0.00016479,2]
[401165878,1768007442008,-150.0,0.00016481,2]
[401165879,1768007442017,-150.0,0.00016482,2]
[401165880,1768007442027,-402.73999143,0.00016482,2]
[401165881,1768007442040,-150.0,0.00016482,2]
[401165882,1768007442049,-201.0,0.00016482,2]
[401165883,1768007442058,-221.19775946,0.00016482,2]
[401165884,1768007442067,-200.0,0.00016482,2]
[401165885,1768007442078,-150.0,0.00016486,2]
[401165886,1768007442087,-150.0,0.00016489,2]
[401165887,1768007442096,-966.45907382,0.00016495,2]
[401165888,1768007442106,-150.0,0.00016496,2]
[401165889,1768007442115,-150.0,0.00016496,2]
[401165890,1768007442124,-150.0,0.000165,2]
[401165891,1768007442133,-150.0,0.00016504,2]
[401165892,1768007442143,-150.0,0.00016505,2]
[401165893,1768007442152,-150.0,0.00016507,2]
[401165894,1768007442161,-150.0,0.00016511,2]
[401165895,1768007442170,-150.0,0.00016519,2]
[401165896,1768007442179,-150.0,0.00016519,2]
[401165897,1768007442188,-150.0,0.00016522,2]
[401165899,1768007442197,-150.0,0.00016527,2]
[401165900,1768007442206,-150.0,0.0001653,2]
[401165902,1768007442216,-150.0,0.00016532,2]
[401165904,1768007442225,-150.0,0.00016533,2]
[401165906,1768007442235,-150.0,0.00016537,2]
[401165908,1768007442244,-150.0,0.00016542,2]
[401165910,1768007442253,-151.10085397,0.00016547,2]
[401165913,1768007442263,-500.0,0.00016547,2]
[401165916,1768007442272,-701.55,0.00016547,2]
[401165919,1768007442282,-150.0,0.00016548,2]
[401165921,1768007442291,-150.0,0.00016549,2]
[401165922,1768007442301,-150.0,0.00016555,2]
[401165923,1768007442310,-150.0,0.00016556,2]
[401165924,1768007442320,-150.0,0.00016556,2]
[401165925,1768007442330,-150.0,0.0001656,2]
[401165926,1768007442340,-150.0,0.0001656,2]
[401165927,1768007442349,-150.0,0.0001656,2]
[401165928,1768007442359,-150.0,0.00016565,2]
[401165929,1768007442369,-150.0,0.00016568,2]
[401165930,1768007442379,-150.0,0.00016575,2]
[401165931,1768007442389,-150.0,0.00016576,2]
[401165932,1768007442398,-150.0,0.00016578,2]
[401165933,1768007442407,-150.0,0.0001658,2]
[401165934,1768007442416,-150.0,0.00016586,2]
[401165935,1768007442425,-150.0,0.00016587,2]
[401165936,1768007442435,-150.0,0.00016588,2]
[401165937,1768007442444,-150.0,0.00016589,2]
[401165938,1768007442454,-150.0,0.00016594,2]
[401165939,1768007442463,-150.0,0.000166,2]
[401165940,1768007442473,-500.0,0.00016602,2]
[401165941,1768007442482,-150.0,0.00016603,2]
[401165942,1768007442492,-150.0,0.00016606,2]
[401165943,1768007442501,-150.0,0.00016609,2]
[401165944,1768007442511,-150.0,0.0001661,2]
[401165945,1768007442520,-150.0,0.00016612,2]
[401165946,1768007442530,-150.0,0.00016615,2]
[401165947,1768007442539,-150.0,0.00016622,2]
[401165948,1768007442548,-150.0,0.0001663,2]
[401165949,1768007442557,-150.0,0.0001663,2]
[401165950,1768007442566,-150.0,0.00016631,2]
[401165951,1768007442576,-150.0,0.00016631,2]
[401165952,1768007442585,-150.0,0.00016633,2]
[401165953,1768007442595,-7277.04437014,0.00016636,2]
[401165954,1768007442610,-4256.80955003,0.00016636,2]
[401165955,1768007442620,-282.0930968,0.0001664,2]
[401165956,1768007442629,-150.0,0.00016643,2]
[401165957,1768007442638,-150.0,0.00016644,2]
[401165958,1768007442648,-150.0,0.0001665,2]
[401165959,1768007442658,-150.0,0.0001665,2]
[401165960,1768007442667,-150.0,0.0001665,2]
[401165961,1768007442677,-150.0,0.0001665,2]
[401165962,1768007442686,-150.0,0.00016652,2]
[401165963,1768007442696,-150.0,0.00016652,2]
[401165964,1768007442705,-150.0,0.00016652,2]
[401165965,1768007442716,-150.0,0.00016656,2]
[401165966,1768007442726,-150.0,0.00016656,2]
[401165967,1768007442736,-500.0,0.00016657,2]
[401165968,1768007442745,-150.0,0.00016657,2]
[401165969,1768007442754,-150.0,0.00016667,2]
[401165970,1768007442764,-150.0,0.00016669,2]
[401165971,1768007442774,-150.0,0.0001667,2]
[401165972,1768007442783,-150.0,0.00016671,2]
[401165973,1768007442793,-150.0,0.00016678,2]
[401165974,1768007442803,-150.0,0.00016682,2]
[401165975,1768007442813,-150.0,0.00016684,2]
[401165976,1768007442823,-150.0,0.00016687,2]
[401165977,1768007442833,-150.0,0.00016689,2]
[401165978,1768007442842,-150.0,0.00016691,2]
[401165979,1768007442851,-150.0,0.00016698,2]
[401165980,1768007442861,-150.0,0.00016701,2]
[401165981,1768007442870,-150.0,0.00016706,2]
[401165982,1768007442880,-150.0,0.00016707,2]
[401165983,1768007442890,-150.0,0.0001671,2]
[401165984,1768007442899,-150.0,0.00016711,2]
[401165985,1768007442909,-150.0,0.00016711,2]
[401165986,1768007442918,-500.0,0.00016711,2]
[401165987,1768007442927,-150.0,0.00016714,2]
[401165988,1768007442937,-150.0,0.00016724,2]
[401165989,1768007442946,-150.0,0.00016725,2]
[401165990,1768007442956,-150.0,0.00016726,2]
[401165991,1768007442966,-150.0,0.00016732,2]
[401165992,1768007442976,-150.0,0.00016732,2]
[401165993,1768007442985,-150.0,0.00016733,2]
[401165995,1768007442994,-150.0,0.00016737,2]
[401165997,1768007443004,-150.0,0.0001674,2]
[401165999,1768007443014,-150.0,0.00016744,2]
[401166001,1768007443023,-150.0,0.00016747,2]
[401166003,1768007443036,-150.0,0.00016752,2]
[401166004,1768007443045,-150.0,0.00016754,2]
[401166005,1768007443054,-150.0,0.00016756,2]
[401166006,1768007443064,-150.0,0.00016758,2]
[401166007,1768007443073,-150.0,0.00016762,2]
[401166008,1768007443083,-150.0,0.00016764,2]
[401166009,1768007443092,-500.0,0.00016766,2]
[401166010,1768007443102,-150.0,0.0001677,2]
[401166011,1768007443111,-150.0,0.00016773,2]
[401166012,1768007443121,-150.0,0.00016778,2]
[401166013,1768007443130,-150.0,0.00016781,2]
[401166014,1768007443140,-150.0,0.00016782,2]
[401166015,1768007443150,-150.0,0.00016783,2]
[401166016,1768007443160,-150.0,0.00016791,2]
[401166017,1768007443169,-150.0,0.00016792,2]
[401166018,1768007443179,-150.0,0.00016793,2]
[401166019,1768007443188,-165.35,0.00016794,2]
[401166020,1768007443198,-150.0,0.000168,2]
[401166021,1768007443208,-150.0,0.000168,2]
[401166022,1768007443218,-150.0,0.00016808,2]
[401166023,1768007443228,-150.0,0.00016809,2]
[401166024,1768007443237,-150.0,0.00016814,2]
[401166025,1768007443247,-150.0,0.00016815,2]
[401166026,1768007443256,-150.0,0.00016818,2]
[401166027,1768007443266,-150.0,0.00016819,2]
[401166028,1768007443276,-500.0,0.00016821,2]
[401166029,1768007443285,-701.55,0.00016821,2]
[401166030,1768007443294,-500.0,0.00016822,2]
[401166031,1768007443304,-150.0,0.00016822,2]
[401166032,1768007443313,-150.0,0.0001683,2]
[401166033,1768007443322,-150.0,0.00016834,2]
[401166034,1768007443332,-150.0,0.00016834,2]
[401166035,1768007443341,-150.0,0.00016837,2]
[401166036,1768007443351,-150.0,0.00016837,2]
[401166037,1768007443360,-150.0,0.00016838,2]
[401166038,1768007443370,-150.0,0.00016843,2]
[401166039,1768007443379,-150.0,0.00016844,2]
[401166040,1768007443389,-150.0,0.00016845,2]
[401166041,1768007443398,-150.0,0.00016855,2]
[401166042,1768007443408,-150.0,0.00016856,2]
[401166043,1768007443417,-150.0,0.00016859,2]
[401166044,1768007443427,-150.0,0.00016861,2]
[401166045,1768007443436,-150.0,0.00016865,2]
[401166046,1768007443446,-150.0,0.00016867,2]
[401166047,1768007443455,-10000.0,0.00016869,2]
[401166048,1768007443464,-150.0,0.00016872,2]
[401166049,1768007443474,-150.0,0.00016875,2]
[401166050,1768007443483,-150.0,0.00016875,2]
[401166051,1768007443492,-150.0,0.00016875,2]
[401166052,1768007443501,-500.0,0.00016876,2]
[401166053,1768007443511,-882.32936576,0.00016882,2]
[401166054,1768007443521,-150.0,0.00016884,2]
[401166055,1768007443530,-150.0,0.00016885,2]
[401166056,1768007443539,-150.0,0.00016889,2]
[401166057,1768007443548,-7277.04437014,0.00016889,2]
[401166058,1768007443559,-4256.80955003,0.00016889,2]
[401166059,1768007443568,-150.0,0.00016892,2]
[401166060,1768007443577,-150.0,0.00016894,2]
[401166061,1768007443586,-150.0,0.00016895,2]
[401166062,1768007443595,-150.0,0.00016899,2]
[401166063,1768007443605,-150.0,0.00016906,2]
[401166064,1768007443614,-150.0,0.0001691,2]
[401166065,1768007443623,-150.0,0.00016911,2]
[401166066,1768007443633,-150.0,0.00016912,2]
[401166067,1768007443643,-150.0,0.00016916,2]
[401166068,1768007443654,-150.0,0.0001692,2]
[401166069,1768007443676,-150.0,0.0001692,2]
[401166070,1768007443687,-150.0,0.0001692,2]
[401166071,1768007443698,-195.0,0.00016925,2]
[401166072,1768007443708,-250.0,0.00016925,2]
[401166073,1768007443718,-150.0,0.00016925,2]
[401166074,1768007443729,-150.0,0.00016929,2]
[401166075,1768007443740,-500.0,0.00016931,2]
[401166076,1768007443751,-150.0,0.00016931,2]
[401166077,1768007443761,-150.0,0.00016933,2]
[401166078,1768007443771,-150.0,0.00016935,2]
[401166079,1768007443780,-150.0,0.00016936,2]
[401166080,1768007443789,-150.0,0.00016948,2]
[401166081,1768007443800,-150.0,0.0001695,2]
[401166082,1768007443810,-150.0,0.00016952,2]
[401166083,1768007443819,-150.0,0.00016952,2]
[401166084,1768007443829,-3240.0,0.00016952,2]
[401166085,1768007443840,-150.0,0.00016956,2]
[401166086,1768007443849,-150.0,0.00016957,2]
[401166087,1768007443859,-150.0,0.00016961,2]
[401166088,1768007443873,-150.0,0.00016969,2]
[401166089,1768007443891,-150.0,0.00016971,2]
[401166090,1768007443905,-150.0,0.00016975,2]
[401166091,1768007443915,-150.0,0.00016975,2]
[401166092,1768007443930,-150.0,0.00016977,2]
[401166093,1768007443945,-150.0,0.00016978,2]
[401166094,1768007443960,-150.0,0.00016979,2]
[401166095,1768007443975,-424.92481471,0.00016985,2]
[401166096,1768007443986,-150.0,0.00016986,2]
[401166097,1768007444000,-600.0,0.00016986,2]
[401166098,1768007444014,-150.0,0.00016987,2]
[401166099,1768007444030,-150.0,0.00016997,2]
[401166100,1768007444045,-150.0,0.00016998,2]
[401166101,1768007444060,-150.0,0.00017,2]
[401166102,1768007444077,-250.0,0.00017,2]
[401166103,1768007444088,-150.0,0.00017003,2]
[401166104,1768007444103,-150.0,0.00017006,2]
[401166105,1768007444115,-282.0,0.00017006,2]
[401166106,1768007444130,-150.0,0.00017006,2]
[401166107,1768007444144,-150.0,0.0001701,2]
[401166108,1768007444159,-150.0,0.00017011,2]
[401166109,1768007444172,-150.0,0.00017018,2]
[401166110,1768007444186,-150.0,0.0001702,2]
[401166111,1768007444200,-150.0,0.00017022,2]
[401166112,1768007444214,-150.0,0.00017025,2]
[401166113,1768007444226,-150.0,0.00017031,2]
[401166114,1768007444241,-150.0,0.00017033,2]
[401166115,1768007444254,-150.0,0.00017037,2]
[401166116,1768007444267,-150.0,0.00017039,2]
[401166117,1768007444281,-165.35,0.00017041,2]
[401166118,1768007444292,-150.0,0.00017043,2]
[401166119,1768007444309,-150.0,0.00017044,2]
[401166120,1768007444323,-150.0,0.00017044,2]
[401166121,1768007444337,-150.0,0.00017058,2]
[401166122,1768007444349,-150.0,0.00017059,2]
[401166123,1768007444362,-150.0,0.0001706,2]
[401166124,1768007444374,-150.0,0.00017062,2]
[401166125,1768007444384,-150.0,0.00017063,2]
[401166126,1768007444396,-150.0,0.00017066,2]
[401166127,1768007444408,-150.0,0.00017067,2]
[401166128,1768007444423,-150.0,0.0001708,2]
[401166129,1768007444434,-150.0,0.00017081,2]
[401166130,1768007444445,-150.0,0.00017086,2]
[401166131,1768007444456,-150.0,0.00017087,2]
[401166132,1768007444468,-150.0,0.00017087,2]
[401166133,1768007444482,-150.0,0.00017089,2]
[401166134,1768007444496,-150.0,0.00017089,2]
[401166135,1768007444507,-701.55,0.00017095,2]
[401166136,1768007444518,-1000.0,0.00017099,2]
[401166137,1768007444529,-2000.0,0.00017099,2]
[401166138,1768007444541,-1000.0,0.00017099,2]
[401166139,1768007444553,-2000.0,0.00017099,2]
[401166140,1768007444564,-1000.0,0.00017099,2]
[401166141,1768007444576,-2000.0,0.00017099,2]
[401166142,1768007444587,-1000.0,0.00017099,2]
[401166143,1768007444599,-2000.0,0.00017099,2]
[401166144,1768007444612,-1000.0,0.00017099,2]
[401166145,1768007444624,-2000.0,0.00017099,2]
[401166146,1768007444636,-1000.0,0.00017099,2]
[401166147,1768007444648,-2000.0,0.00017099,2]
[401166148,1768007444660,-1000.0,0.00017099,2]
[401166149,1768007444672,-553.64373807,0.00017099,2]
[401166150,1768007444685,-2000.0,0.00017099,2]
[401166151,1768007444705,-1000.0,0.00017099,2]
[401166152,1768007444717,-2000.0,0.00017099,2]
[401166153,1768007444729,-1000.0,0.00017099,2]
[401166154,1768007444742,-407.91279506,0.00017099,2]
[401166155,1768007444754,-1000.0,0.00017099,2]
[401166156,1768007444766,-1000.0,0.00017099,2]
[401166157,1768007444778,-1000.0,0.00017099,2]
[401166158,1768007444797,-250.0,0.00017099,2]
[401166159,1768007444816,-250.0,0.00017099,2]
[401166160,1768007444828,-250.0,0.00017099,2]
[401166161,1768007444841,-500.0,0.00017099,2]
[401166162,1768007444853,-500.0,0.00017099,2]
[401166163,1768007444866,-250.0,0.00017099,2]
[401166164,1768007444880,-500.0,0.00017099,2]
[401166165,1768007444893,-500.0,0.00017099,2]
[401166166,1768007444906,-250.0,0.00017099,2]
[401166167,1768007444918,-322.6107,0.00017099,2]
[401166168,1768007444931,-500.0,0.00017099,2]
[401166169,1768007444944,-500.0,0.00017099,2]
[401166170,1768007444958,-250.0,0.00017099,2]
[401166171,1768007444971,-500.0,0.00017099,2]
[401166172,1768007444983,-500.0,0.00017099,2]
[401166173,1768007444995,-250.0,0.00017099,2]
[401166174,1768007445007,-500.0,0.00017099,2]
[401166175,1768007445019,-500.0,0.00017099,2]
[401166176,1768007445035,-250.0,0.00017099,2]
[401166177,1768007445046,-500.0,0.00017099,2]
[401166178,1768007445058,-500.0,0.00017099,2]
[401166179,1768007445070,-250.0,0.00017099,2]
[401166180,1768007445082,-500.0,0.00017099,2]
[401166181,1768007445094,-500.0,0.00017099,2]
[401166182,1768007445106,-250.0,0.00017099,2]
[401166183,1768007445118,-500.0,0.00017099,2]
[401166184,1768007445130,-500.0,0.00017099,2]
[401166185,1768007445141,-250.0,0.00017099,2]
[401166186,1768007445154,-500.0,0.00017099,2]
[401166187,1768007445167,-500.0,0.00017099,2]
[401166188,1768007445178,-500.0,0.00017099,2]
[401166189,1768007445190,-250.0,0.00017099,2]
[401166190,1768007445201,-500.0,0.00017099,2]
[401166191,1768007445213,-500.0,0.00017099,2]
[401166192,1768007445224,-500.0,0.00017099,2]
[401166193,1768007445236,-500.0,0.00017099,2]
[401166194,1768007445248,-500.0,0.00017099,2]
[401166195,1768007445260,-150.0,0.000171,2]
[401166196,1768007445272,-150.0,0.000171,2]
[401166197,1768007445284,-150.0,0.000171,2]
[401166198,1768007445295,-150.0,0.000171,2]
[401166200,1768007445307,-150.0,0.000171,2]
[401166201,1768007445319,-150.0,0.000171,2]
[401166202,1768007445332,-150.0,0.000171,2]
[401166203,1768007445344,-1052.04077363,0.000171,2]
[401166204,1768007445356,-150.0,0.00017111,2]
[401166205,1768007445370,-150.0,0.00017111,2]
[401166206,1768007445382,-150.0,0.00017113,2]
[401166207,1768007445394,-150.0,0.00017113,2]
[401166208,1768007445406,-150.0,0.00017114,2]
[401166209,1768007445419,-150.0,0.00017119,2]
[401166210,1768007445431,-150.0,0.0001712,2]
[401166211,1768007445443,-169.86789219,0.00017133,2]
[401166212,1768007445455,-150.0,0.00017133,2]
[401166213,1768007445467,-150.0,0.00017134,2]
[401166214,1768007445479,-150.0,0.00017137,2]
[401166215,1768007445492,-150.0,0.00017138,2]
[401166216,1768007445504,-150.0,0.0001714,2]
[401166217,1768007445516,-150.0,0.00017141,2]
[401166218,1768007445528,-150.0,0.00017142,2]
[401166219,1768007445541,-7277.04437014,0.00017142,2]
[401166220,1768007445553,-4256.80955003,0.00017142,2]
[401166221,1768007445566,-1680.0,0.00017148,2]
[401166222,1768007445578,-150.0,0.00017156,2]
[401166223,1768007445589,-150.0,0.00017156,2]
[401166224,1768007445602,-150.0,0.00017157,2]
[401166225,1768007445614,-150.0,0.00017161,2]
[401166226,1768007445626,-150.0,0.00017163,2]
[401166228,1768007445638,-150.0,0.00017167,2]
[401166229,1768007445649,-150.0,0.00017169,2]
[401166230,1768007445661,-150.0,0.00017175,2]
[401166231,1768007445673,-150.0,0.00017178,2]
[401166232,1768007445686,-645.83273924,0.00017179,2]
[401166233,1768007445698,-150.0,0.0001718,2]
[401166234,1768007445710,-150.0,0.00017182,2]
[401166235,1768007445722,-1000.0,0.00017188,2]
[401166236,1768007445733,-150.0,0.00017189,2]
[401166237,1768007445745,-150.0,0.0001719,2]
[401166238,1768007445761,-150.0,0.00017194,2]
[401166239,1768007445772,-150.0,0.00017194,2]
[401166240,1768007445785,-150.0,0.00017197,2]
[401166241,1768007445796,-150.0,0.000172,2]
[401166242,1768007445808,-150.0,0.00017202,2]
[401166243,1768007445820,-150.0,0.00017203,2]
[401166244,1768007445832,-500.0,0.00017205,2]
[401166245,1768007445843,-150.0,0.00017212,2]
[401166246,1768007445855,-150.0,0.00017214,2]
[401166247,1768007445868,-159.10718444,0.00017214,2]
[401166248,1768007445879,-150.0,0.00017221,2]
[401166249,1768007445891,-150.0,0.00017222,2]
[401166250,1768007445903,-150.0,0.00017223,2]
[401166251,1768007445915,-150.0,0.00017225,2]
[401166252,1768007445927,-150.0,0.00017225,2]
[401166253,1768007445939,-150.0,0.00017229,2]
[401166254,1768007445950,-282.0,0.00017229,2]
[401166255,1768007445962,-150.0,0.00017231,2]
[401166256,1768007445973,-150.0,0.00017239,2]
[401166257,1768007445985,-482.82,0.00017241,2]
[401166258,1768007445997,-150.0,0.00017243,2]
[401166259,1768007446009,-150.0,0.00017244,2]
[401166260,1768007446021,-150.0,0.00017248,2]
[401166261,1768007446035,-150.0,0.00017248,2]
[401166262,1768007446048,-150.0,0.0001725,2]
[401166263,1768007446060,-150.0,0.00017252,2]
[401166264,1768007446071,-150.0,0.00017264,2]
[401166265,1768007446084,-150.0,0.00017265,2]
[401166266,1768007446095,-150.0,0.00017267,2]
[401166267,1768007446108,-150.0,0.00017269,2]
[401166268,1768007446119,-150.0,0.00017271,2]
[401166269,1768007446131,-150.0,0.00017275,2]
[401166270,1768007446143,-150.0,0.0001728,2]
[401166271,1768007446155,-150.0,0.0001728,2]
[401166272,1768007446167,-150.0,0.0001728,2]
[401166273,1768007446179,-150.0,0.00017284,2]
[401166274,1768007446190,-150.0,0.00017288,2]
[401166275,1768007446201,-150.0,0.00017289,2]
[401166276,1768007446212,-150.0,0.0001729,2]
[401166277,1768007446224,-150.0,0.00017294,2]
[401166278,1768007446235,-150.0,0.00017301,2]
[401166279,1768007446247,-150.0,0.00017305,2]
[401166280,1768007446258,-150.0,0.00017306,2]
[401166281,1768007446270,-150.0,0.00017308,2]
[401166282,1768007446282,-150.0,0.00017311,2]
[401166283,1768007446293,-150.0,0.00017315,2]
[401166284,1768007446305,-150.0,0.00017316,2]
[401166285,1768007446317,-150.0,0.00017325,2]
[401166286,1768007446329,-150.0,0.00017325,2]
[401166287,1768007446340,-150.0,0.00017325,2]
[401166288,1768007446351,-1000.0,0.00017327,2]
[401166289,1768007446363,-150.0,0.00017328,2]
[401166290,1768007446374,-150.0,0.00017333,2]
[401166291,1768007446385,-150.0,0.00017335,2]
[401166292,1768007446397,-150.0,0.00017339,2]
[401166293,1768007446408,-150.0,0.00017341,2]
[401166294,1768007446419,-150.0,0.00017344,2]
[401166295,1768007446431,-150.0,0.00017345,2]
[401166296,1768007446443,-220.4518857,0.00017353,2]
[401166297,1768007446454,-150.0,0.00017355,2]
[401166298,1768007446465,-150.0,0.00017356,2]
[401166299,1768007446478,-150.0,0.00017357,2]
[401166300,1768007446489,-454.0,0.00017362,2]
[401166301,1768007446501,-150.0,0.00017362,2]
[401166302,1768007446512,-150.0,0.00017362,2]
[401166303,1768007446524,-150.0,0.00017363,2]
[401166304,1768007446536,-150.0,0.00017366,2]
[401166305,1768007446547,-150.0,0.00017366,2]
[401166306,1768007446559,-701.55,0.00017369,2]
[401166307,1768007446570,-150.0,0.0001737,2]
[401166308,1768007446582,-150.0,0.00017378,2]
[401166309,1768007446594,-150.0,0.00017381,2]
[401166310,1768007446605,-150.0,0.00017382,2]
[401166311,1768007446616,-150.0,0.00017385,2]
[401166312,1768007446627,-150.0,0.00017386,2]
[401166313,1768007446639,-150.0,0.00017391,2]
[401166314,1768007446650,-150.0,0.00017392,2]
[401166315,1768007446662,-7277.04437014,0.00017394,2]
[401166316,1768007446673,-4256.80955003,0.00017394,2]
[401166317,1768007446684,-150.0,0.000174,2]
[401166318,1768007446696,-150.0,0.000174,2]
[401166319,1768007446708,-1000.0,0.00017406,2]
[401166320,1768007446719,-150.0,0.00017407,2]
[401166321,1768007446731,-150.0,0.00017408,2]
[401166322,1768007446742,-150.0,0.00017409,2]
[401166323,1768007446754,-150.0,0.00017417,2]
[401166324,1768007446765,-150.0,0.00017418,2]
[401166325,1768007446775,-150.0,0.00017419,2]
[401166326,1768007446786,-1000.0,0.00017421,2]
[401166327,1768007446797,-150.0,0.00017422,2]
[401166328,1768007446809,-150.0,0.00017427,2]
[401166329,1768007446820,-150.0,0.0001743,2]
[401166330,1768007446831,-1000.0,0.00017433,2]
[401166331,1768007446843,-150.0,0.00017436,2]
[401166332,1768007446855,-150.0,0.00017437,2]
[401166333,1768007446866,-150.0,0.00017442,2]
[401166334,1768007446876,-150.0,0.00017444,2]
[401166335,1768007446887,-150.0,0.00017446,2]
[401166336,1768007446899,-150.0,0.00017448,2]
[401166337,1768007446909,-150.0,0.00017453,2]
[401166338,1768007446920,-150.0,0.00017456,2]
[401166339,1768007446930,-150.0,0.0001746,2]
[401166340,1768007446944,-150.0,0.00017463,2]
[401166341,1768007446955,-150.0,0.00017467,2]
[401166342,1768007446965,-150.0,0.00017468,2]
[401166343,1768007446975,-150.0,0.00017468,2]
[401166344,1768007446986,-150.0,0.00017474,2]
[401166345,1768007446996,-150.0,0.00017475,2]
[401166346,1768007447007,-150.0,0.00017476,2]
[401166347,1768007447018,-150.0,0.00017486,2]
[401166348,1768007447029,-150.0,0.00017489,2]
[401166349,1768007447043,-150.0,0.00017489,2]
[401166350,1768007447055,-150.0,0.0001749,2]
[401166351,1768007447066,-150.0,0.00017493,2]
[401166352,1768007447078,-150.0,0.00017494,2]
[401166353,1768007447090,-282.0,0.00017496,2]
[401166354,1768007447101,-150.0,0.00017499,2]
[401166355,1768007447112,-150.0,0.00017502,2]
[401166356,1768007447123,-150.0,0.00017509,2]
[401166357,1768007447134,-150.0,0.00017511,2]
[401166358,1768007447630,-150.0,0.00017513,2]
[401166359,1768007447655,-1000.0,0.00017515,2]
[401166360,1768007447669,-150.0,0.00017516,2]
[401166361,1768007447678,-150.0,0.00017518,2]
[401166362,1768007447688,-150.0,0.00017522,2]
[401166363,1768007447698,-150.0,0.00017529,2]
[401166364,1768007447708,-282.0,0.00017529,2]
[401166365,1768007447717,-150.0,0.0001753,2]
[401166366,1768007447727,-150.0,0.00017531,2]